bitfinex/quotes_SOLUSD_20240614
["timestamp","ask_amount","ask_price","bid_price","bid_amount"]
[1718365361130,23.2147,148.03,147.98,6.13]
[1718365361533,29.3447,148.03,147.97,6.13]
[1718365361727,29.3447,148.03,147.93,45.0]
[1718365362048,0.17,148.02,147.97,6.13]
[1718365363250,0.17,148.02,147.92,16.625]
[1718365363251,6.13,148.01,147.92,16.625]
[1718365363557,6.64,148.02,147.96,6.13]
[1718365363732,0.34,148.01,147.96,6.13]
[1718365364935,0.17,148.02,147.98,6.13]
[1718365365536,29.3447,148.03,147.99,6.13]
[1718365365537,23.2147,148.03,147.99,6.13]
[1718365365834,23.2147,148.03,147.98,6.13]
[1718365366442,29.3447,148.03,147.98,6.13]
[1718365366829,29.3447,148.03,147.97,6.13]
[1718365367853,6.3,148.02,147.92,16.625]
[1718365368034,6.3,148.02,147.97,6.13]
[1718365368945,6.3,148.02,147.96,6.13]
[1718365369255,0.17,148.02,147.96,6.13]
[1718365369453,6.13,148.01,147.96,6.13]
[1718365370036,0.17,148.02,147.93,45.0]
[1718365370237,20.51,148.02,147.95,6.13]
[1718365370655,20.68,148.02,147.93,45.0]
[1718365370954,20.68,148.02,147.95,6.13]
[1718365372254,20.51,148.02,147.96,6.13]
[1718365372446,6.13,148.01,147.95,6.13]
[1718365373170,0.17,148.0,147.93,45.0]
[1718365373335,6.64,148.0,147.94,6.13]
[1718365373664,6.47,148.0,147.94,6.13]
[1718365374037,6.47,148.0,147.93,45.0]
[1718365374259,6.3,147.99,147.93,45.0]
[1718365374456,0.34,148.0,147.94,6.13]
[1718365374636,6.3,147.99,147.94,6.13]
[1718365376642,6.3,148.01,147.94,6.13]
[1718365376859,6.13,148.0,147.95,51.13]
[1718365377057,0.51,148.02,147.95,6.13]
[1718365377239,6.13,148.01,147.95,6.13]
[1718365378867,0.51,148.02,147.95,6.13]
[1718365379166,6.13,148.01,147.95,6.13]
[1718365381166,6.13,147.98,147.93,6.13]
[1718365383567,6.13,147.98,147.87,42.3515522]
[1718365383568,6.3,148.0,147.94,6.13]
[1718365385676,6.13,148.0,147.94,6.13]
[1718365385846,6.13,147.99,147.88,16.4529]
[1718365386045,16.2776,147.98,147.89,45.17]
[1718365386347,16.2776,147.98,147.93,6.13]
[1718365387858,16.2776,147.98,147.89,45.17]
[1718365387859,16.1076,147.98,147.89,45.17]
[1718365388067,16.1076,147.98,147.94,6.13]
[1718365388259,16.1076,147.98,147.93,6.13]
[1718365389172,16.1076,147.98,147.94,6.13]
[1718365390167,22.2961,148.02,147.95,45.0]
[1718365390372,22.2961,148.02,147.96,6.13]
[1718365390573,6.13,148.01,147.95,51.13]
[1718365392360,6.13,148.01,147.91,24.52]
[1718365392561,0.17,148.0,147.92,45.0]
[1718365393662,6.3,148.0,147.92,45.0]
[1718365394550,6.13,148.0,147.92,45.0]
[1718365394755,6.13,147.99,147.94,6.13]
[1718365394957,6.13,148.0,147.94,6.13]
[1718365395169,6.3,147.99,147.93,6.13]
[1718365395372,6.13,147.99,147.93,6.13]
[1718365396562,0.34,147.98,147.88,16.4529]
[1718365396757,6.47,148.0,147.94,6.13]
[1718365396968,6.3,148.0,147.94,6.13]
[1718365398978,0.34,148.01,147.95,51.13]
[1718365399157,6.13,148.0,147.95,51.13]
[1718365400166,6.47,148.01,147.95,51.13]
[1718365400378,0.33333333,147.99,147.95,51.13]
[1718365401256,0.33333333,147.99,147.96,6.13]
[1718365402860,0.33333333,147.99,147.97,6.13]
[1718365403564,0.33333333,147.99,147.98,51.13]
[1718365403875,0.33333333,147.99,147.98,6.13]
[1718365404058,0.33333333,147.99,147.98,51.13]
[1718365408070,0.33333333,147.99,147.98,45.0]
[1718365408380,0.33333333,147.99,147.98,51.13]
[1718365413478,0.33333333,147.99,147.98,45.0]
[1718365413675,0.33333333,147.99,147.93,43.67489826]
[1718365413676,0.33333333,147.99,147.93,23.38489826]
[1718365413865,0.33333333,147.99,147.93,16.1239]
[1718365414273,0.33333333,147.99,147.94,6.13]
[1718365414977,6.46333333,147.99,147.89,24.82265394]
[1718365415172,6.13,147.98,147.93,6.13]
[1718365415484,6.13,147.98,147.89,24.82265394]
[1718365415663,0.33333333,147.97,147.92,6.13]
[1718365416369,0.33333333,147.97,147.89,24.82265394]
[1718365416565,0.33333333,147.97,147.92,6.13]
[1718365416985,0.33333333,147.97,147.89,24.82265394]
[1718365417287,0.33333333,147.97,147.93,6.13]
[1718365417468,0.33333333,147.97,147.9,45.0]
[1718365417882,0.33333333,147.97,147.93,6.13]
[1718365418259,0.33333333,147.97,147.9,45.0]
[1718365418465,0.33333333,147.97,147.92,6.13]
[1718365419070,0.33333333,147.97,147.93,6.13]
[1718365422472,0.33333333,147.97,147.92,6.13]
[1718365423104,0.33333333,147.97,147.93,6.13]
[1718365423289,0.33333333,147.97,147.9,45.0]
[1718365423581,0.33333333,147.97,147.93,6.13]
[1718365423778,0.33333333,147.97,147.94,6.13]
[1718365425878,0.33333333,147.97,147.9,45.0]
[1718365426069,0.33333333,147.97,147.95,6.13]
[1718365426965,0.33333333,147.97,147.91,24.52]
[1718365427179,0.33333333,147.97,147.92,45.0]
[1718365428086,0.33333333,147.97,147.95,6.13]
[1718365429072,0.33333333,147.97,147.92,45.0]
[1718365429276,0.33333333,147.97,147.94,6.13]
[1718365429474,0.33333333,147.97,147.92,45.0]
[1718365429675,0.33333333,147.97,147.94,6.13]
[1718365429978,0.33333333,147.97,147.92,45.0]
[1718365435178,0.33333333,147.97,147.95,6.13]
[1718365437107,0.33333333,147.97,147.92,45.0]
[1718365437407,0.33333333,147.97,147.96,6.13]
[1718365441800,0.33333333,147.97,147.95,6.13]
[1718365446478,0.33333333,147.97,147.92,45.0]
[1718365446675,0.33333333,147.97,147.95,6.13]
[1718365447079,0.33333333,147.97,147.94,6.13]
[1718365448611,0.33333333,147.97,147.92,45.0]
[1718365448908,0.33333333,147.97,147.93,6.13]
[1718365450313,0.33333333,147.97,147.92,45.0]
[1718365450618,0.33333333,147.97,147.93,6.13]
[1718365451896,0.33333333,147.97,147.92,45.0]
[1718365452095,0.33333333,147.97,147.92,51.13]
[1718365453094,0.33333333,147.97,147.92,6.13]
[1718365453501,6.46333333,147.97,147.92,6.13]
[1718365455119,0.33333333,147.97,147.92,6.13]
[1718365455313,6.46333333,147.97,147.91,6.13]
[1718365455683,0.33333333,147.97,147.92,6.13]
[1718365456514,0.33333333,147.97,147.86,33.99898956]
[1718365456710,0.33333333,147.97,147.92,6.13]
[1718365457018,6.46333333,147.97,147.92,6.13]
[1718365457391,0.33333333,147.97,147.87,45.17]
[1718365457592,22.4888,147.96,147.87,45.0]
[1718365457819,6.13,147.95,147.89,6.13]
[1718365457988,6.46333333,147.95,147.89,6.13]
[1718365458196,6.46333333,147.95,147.87,45.0]
[1718365458396,6.46333333,147.95,147.89,6.13]
[1718365459725,0.33333333,147.95,147.89,6.13]
[1718365460026,6.46333333,147.95,147.89,6.13]
[1718365461817,0.33333333,147.95,147.9,6.13]
[1718365462017,0.33333333,147.95,147.87,45.0]
[1718365462209,0.33333333,147.95,147.9,6.13]
[1718365462410,15.407,147.91,147.82,1.1742118]
[1718365462618,0.34,147.9,147.78,16.3075]
[1718365462923,100.17,147.89,147.78,16.3075]
[1718365463101,6.13,147.85,147.78,16.3075]
[1718365463302,6.13,147.84,147.78,6.13]
[1718365463504,6.13,147.84,147.8,6.13]
[1718365463505,0.33333333,147.84,147.8,6.13]
[1718365463826,0.33333333,147.84,147.83,6.13]
[1718365464208,0.33333333,147.84,147.8,16.04]
[1718365464396,0.33333333,147.84,147.82,6.13]
[1718365465529,0.33333333,147.84,147.81,6.13]
[1718365466402,0.33333333,147.84,147.77,0.8388577]
[1718365466612,0.33333333,147.84,147.81,6.13]
[1718365468515,0.33333333,147.84,147.82,45.0]
[1718365468717,0.33333333,147.84,147.83,6.13]
[1718365468920,0.33333333,147.84,147.78,0.34]
[1718365468921,0.33333333,147.84,147.81,6.13]
[1718365470827,0.33333333,147.84,147.78,0.17]
[1718365471016,0.33333333,147.84,147.81,6.13]
[1718365471521,0.33333333,147.84,147.8,6.13]
[1718365471716,0.33333333,147.84,147.81,45.0]
[1718365473015,0.33333333,147.84,147.83,6.13]
[1718365473549,0.33333333,147.84,147.82,6.13]
[1718365475211,0.33333333,147.84,147.83,6.13]
[1718365475408,0.33333333,147.84,147.83,51.13]
[1718365477129,0.33333333,147.84,147.83,51.3]
[1718365477330,0.33333333,147.84,147.83,71.81]
[1718365477506,0.33333333,147.84,147.83,45.68]
[1718365477709,0.33333333,147.84,147.83,0.68]
[1718365478036,0.33333333,147.84,147.83,6.81]
[1718365482137,0.33333333,147.84,147.81,15.8342]
[1718365482340,0.33333333,147.84,147.81,21.9642]
[1718365484232,0.33333333,147.84,147.82,6.13]
[1718365484517,0.33333333,147.84,147.81,15.8342]
[1718365484518,0.33333333,147.84,147.83,6.47]
[1718365484713,0.33333333,147.84,147.83,0.34]
[1718365484912,0.33333333,147.84,147.83,6.3]
[1718365485342,0.33333333,147.84,147.83,0.17]
[1718365485551,0.33333333,147.84,147.81,16.0042]
[1718365485843,0.33333333,147.84,147.82,6.13]
[1718365486443,0.33333333,147.84,147.81,15.8342]
[1718365486618,0.33333333,147.84,147.82,6.13]
[1718365488741,0.33333333,147.84,147.83,6.13]
[1718365490551,0.33333333,147.84,147.81,15.8342]
[1718365490734,0.33333333,147.84,147.83,6.13]
[1718365493162,0.33333333,147.84,147.83,0.34]
[1718365493330,0.33333333,147.84,147.83,6.47]
[1718365493518,0.33333333,147.84,147.83,6.81]
[1718365494425,0.33333333,147.84,147.83,6.64]
[1718365495524,0.33333333,147.84,147.83,6.81]
[1718365497649,0.33333333,147.84,147.83,6.3]
[1718365497821,0.33333333,147.84,147.83,6.13]
[1718365499851,0.33333333,147.84,147.81,15.8342]
[1718365500026,0.33333333,147.84,147.83,6.13]
[1718365500225,0.33333333,147.84,147.81,15.8342]
[1718365500453,0.33333333,147.84,147.82,6.13]
[1718365501449,0.33333333,147.84,147.81,15.8342]
[1718365501657,0.33333333,147.84,147.83,6.13]
[1718365502152,0.33333333,147.84,147.83,0.34]
[1718365502357,0.33333333,147.84,147.83,6.47]
[1718365504140,0.33333333,147.84,147.83,6.64]
[1718365504357,15.1631,147.93,147.83,40.97]
[1718365504579,16.3348,147.97,147.91,6.13]
[1718365504856,16.3348,147.97,147.93,6.13]
[1718365505660,6.13,148.0,147.94,6.13]
[1718365505862,6.13,148.0,147.95,6.13]
[1718365506068,21.9153,148.01,147.95,6.13]
[1718365506447,15.7853,148.01,147.95,6.13]
[1718365506651,6.5615,148.02,147.97,6.13]
[1718365507059,6.5615,148.02,147.93,16.5493]
[1718365507253,6.13,148.0,147.92,0.51]
[1718365507477,6.13,147.99,147.94,6.13]
[1718365507643,6.13,147.98,147.92,20.0]
[1718365507842,6.13,147.96,147.89,16.5493]
[1718365508079,6.13,147.95,147.9,6.13]
[1718365508380,15.8472,147.98,147.89,16.5493]
[1718365508680,6.13,147.97,147.91,6.13]
[1718365508970,6.13,147.99,147.89,16.5493]
[1718365509150,21.6987,148.02,147.93,6.13]
[1718365509151,6.13,147.98,147.93,6.13]
[1718365509674,6.13,147.98,147.92,6.13]
[1718365509879,6.13,147.98,147.9,0.51]
[1718365509880,6.13,147.97,147.91,6.13]
[1718365510052,100.17,148.01,147.87,6.3298]
[1718365510053,6.13,147.95,147.87,6.3298]
[1718365510255,6.13,147.98,147.89,6.13]
[1718365510256,6.13,147.94,147.89,6.13]
[1718365510851,6.13,147.98,147.89,6.13]
[1718365511052,0.17,147.99,147.91,6.13]
[1718365511352,6.13,147.97,147.91,6.13]
[1718365513067,6.13,147.98,147.92,6.13]
[1718365513290,21.6987,148.02,147.95,6.13]
[1718365513453,6.13,148.01,147.95,6.13]
[1718365514075,6.13,148.0,147.95,6.13]
[1718365514575,6.13,148.0,147.94,6.13]
[1718365515565,21.6987,148.02,147.95,6.13]
[1718365515566,6.13,148.01,147.95,6.13]
[1718365515887,6.13,148.0,147.95,6.13]
[1718365517080,6.13,148.0,147.94,6.13]
[1718365517269,6.13,147.99,147.93,6.3]
[1718365517481,6.13,147.96,147.88,20.29]
[1718365517662,21.6987,148.02,147.91,6.13]
[1718365517979,6.13,147.98,147.9,20.29]
[1718365518163,6.13,147.98,147.92,6.13]
[1718365519883,21.6987,148.02,147.92,6.13]
[1718365520057,6.13,148.0,147.93,0.17]
[1718365520258,0.33333333,147.99,147.94,6.13]
[1718365521367,0.33333333,147.99,147.95,6.13]
[1718365522182,0.33333333,147.99,147.93,0.17]
[1718365522375,0.33333333,147.99,147.96,6.13]
[1718365524058,0.33333333,147.99,147.97,20.34]
[1718365524371,0.33333333,147.99,147.98,6.47]
[1718365524685,0.33333333,147.99,147.98,26.81]
[1718365527093,0.33333333,147.99,147.98,26.64]
[1718365527253,0.33333333,147.99,147.98,26.3]
[1718365528879,0.33333333,147.99,147.98,26.47]
[1718365529082,0.33333333,147.99,147.98,26.81]
[1718365529875,0.33333333,147.99,147.94,15.53019664]
[1718365530083,0.33333333,147.99,147.96,6.13]
[1718365530667,0.33333333,147.99,147.95,20.0]
[1718365530872,0.33333333,147.99,147.95,26.13]
[1718365531260,0.33333333,147.99,147.94,8.10845381]
[1718365531560,0.33333333,147.99,147.95,6.13]
[1718365532073,0.33333333,147.99,147.96,6.3]
[1718365533082,0.33333333,147.99,147.97,6.13]
[1718365535664,0.33333333,147.99,147.98,6.13]
[1718365537191,0.33333333,147.99,147.98,6.47]
[1718365537373,0.33333333,147.99,147.98,6.64]
[1718365537575,0.33333333,147.99,147.98,26.81]
[1718365537779,0.33333333,147.99,147.98,47.1]
[1718365537965,0.33333333,147.99,147.98,26.81]
[1718365538162,0.33333333,147.99,147.98,47.1]
[1718365541266,0.33333333,147.99,147.98,53.23]
[1718365541469,0.33333333,147.99,147.98,47.1]
[1718365542007,0.33333333,147.99,147.98,55.7303]
[1718365542172,0.33333333,147.99,147.98,63.83875381]
[1718365542574,0.33333333,147.99,147.98,79.29655381]
[1718365547383,0.33333333,147.99,147.98,76.79625381]
[1718365547583,0.33333333,147.99,147.98,20.0]
[1718365547787,0.33333333,147.99,147.97,20.0]
[1718365548013,0.33333333,147.99,147.97,6.13]
[1718365548247,0.33333333,147.99,147.98,26.13]
[1718365548396,0.33333333,147.99,147.98,6.13]
[1718365548716,0.33333333,147.99,147.98,26.13]
[1718365549605,0.33333333,147.99,147.98,20.0]
[1718365549791,0.33333333,147.99,147.98,6.13]
[1718365550112,0.33333333,147.99,147.98,26.13]
[1718365550704,0.33333333,147.99,147.98,26.81]
[1718365551319,0.33333333,147.99,147.98,20.68]
[1718365551524,0.33333333,147.99,147.98,26.81]
[1718365557235,0.33333333,147.99,147.98,47.1]
[1718365557410,0.33333333,147.99,147.98,53.23]
[1718365557618,0.33333333,147.99,147.98,61.33845381]
[1718365558533,0.33333333,147.99,147.98,63.83875381]
[1718365559531,0.33333333,147.99,147.98,61.33845381]
[1718365560531,0.33333333,147.99,147.98,34.57845381]
[1718365560718,0.33333333,147.99,147.98,28.44845381]
[1718365560915,0.33333333,147.99,147.98,20.0]
[1718365561118,0.33333333,147.99,147.98,6.13]
[1718365561330,0.33333333,147.99,147.98,26.13]
[1718365561829,0.33333333,147.99,147.98,26.47]
[1718365562030,0.33333333,147.99,147.98,26.64]
[1718365562233,0.33333333,147.99,147.98,26.81]
[1718365565055,0.33333333,147.99,147.98,26.47]
[1718365565519,0.33333333,147.99,147.98,20.0]
[1718365565836,0.33333333,147.99,147.98,6.13]
[1718365566036,0.33333333,147.99,147.98,26.47]
[1718365566223,0.33333333,147.99,147.98,26.81]
[1718365569719,0.33333333,147.99,147.98,47.1]
[1718365572126,0.33333333,147.99,147.98,53.23]
[1718365572325,0.33333333,147.99,147.98,61.33845381]
[1718365573646,0.33333333,147.99,147.98,55.20845381]
[1718365576649,0.33333333,147.99,147.98,61.33845381]
[1718365578956,0.33333333,147.99,147.98,55.20845381]
[1718365579171,0.33333333,147.99,147.98,34.91845381]
[1718365579331,0.33333333,147.99,147.98,28.78845381]
[1718365579649,0.33333333,147.99,147.98,34.91845381]
[1718365582643,0.33333333,147.99,147.98,40.34180707]
[1718365586626,0.33333333,147.99,147.98,34.21180707]
[1718365586830,0.33333333,147.99,147.98,40.34180707]
[1718365591850,0.33333333,147.99,147.98,34.21180707]
[1718365592159,0.33333333,147.99,147.98,40.34180707]
[1718365593078,0.33333333,147.99,147.98,60.62180707]
[1718365593576,0.33333333,147.99,147.98,85.14180707]
[1718365594964,0.33333333,147.99,147.98,60.62180707]
[1718365595874,0.33333333,147.99,147.98,66.75180707]
[1718365598868,0.33333333,147.99,147.98,60.62180707]
[1718365601181,0.33333333,147.99,147.98,54.49180707]
[1718365601565,0.33333333,147.99,147.98,60.62180707]
[1718365602764,0.33333333,147.99,147.98,66.75180707]
[1718365603476,22.4287,148.08,147.98,76.6737499]
[1718365603683,22.4287,148.08,148.04,6.13]
[1718365603870,22.4287,148.08,148.05,6.13]
[1718365604393,22.4287,148.08,148.04,6.13]
[1718365607211,28.5587,148.08,148.03,6.13]
[1718365607585,0.33333333,148.07,148.03,6.13]
[1718365607790,0.33333333,148.07,148.0,0.17]
[1718365607996,0.33333333,148.07,148.03,6.13]
[1718365608186,0.33333333,148.07,148.02,6.13]
[1718365610905,0.33333333,148.07,148.01,6.13]
[1718365611206,0.33333333,148.07,148.02,20.0]
[1718365614284,0.33333333,148.07,148.02,26.13]
[1718365615308,0.33333333,148.07,148.02,20.0]
[1718365615510,0.33333333,148.07,148.02,6.13]
[1718365616522,6.13,148.05,148.0,20.0]
[1718365616711,6.13,148.05,147.99,20.34]
[1718365616919,6.13,148.05,147.99,26.47]
[1718365618196,22.4287,148.08,148.0,6.13]
[1718365618397,6.13,148.06,148.0,6.13]
[1718365619321,6.13,148.05,147.99,26.47]
[1718365620534,6.13,148.05,147.99,20.34]
[1718365620693,22.4287,148.08,147.99,20.0]
[1718365620694,6.13,148.04,147.99,20.0]
[1718365621026,6.13,148.03,147.98,6.13]
[1718365621234,6.13,148.03,147.97,6.13]
[1718365621603,12.7787,148.03,147.97,6.13]
[1718365621806,6.13,148.01,147.94,15.53019664]
[1718365622128,21.6466,148.01,147.95,6.13]
[1718365622499,21.6466,148.01,147.96,20.0]
[1718365622899,21.6466,148.01,147.95,6.13]
[1718365623227,21.6466,148.01,147.96,6.13]
[1718365623521,15.5166,148.01,147.96,6.13]
[1718365625090,15.5166,148.01,147.94,15.70019664]
[1718365625296,21.6466,148.01,147.95,20.0]
[1718365625703,21.6466,148.01,147.95,26.13]
[1718365626506,21.6466,148.01,147.95,20.0]
[1718365626710,21.6466,148.01,147.95,26.13]
[1718365626903,21.6466,148.01,147.95,20.0]
[1718365627113,15.5166,148.01,147.95,26.13]
[1718365627317,6.13,148.0,147.95,26.13]
[1718365629425,6.13,148.0,147.94,6.13]
[1718365630511,15.5166,148.01,147.9,52.11009664]
[1718365630713,12.7601,147.98,147.93,6.13]
[1718365630907,12.7601,147.98,147.92,6.13]
[1718365632116,6.6301,147.98,147.93,6.13]
[1718365632422,6.6301,147.98,147.91,0.51]
[1718365632634,6.6301,147.98,147.93,6.13]
[1718365634008,6.6301,147.98,147.91,0.51]
[1718365634212,12.7601,147.98,147.92,6.13]
[1718365634638,12.7601,147.98,147.91,0.34]
[1718365634639,6.13,147.97,147.91,0.34]
[1718365634939,6.13,147.97,147.92,6.13]
[1718365635439,12.7601,147.98,147.92,6.13]
[1718365636213,12.7601,147.98,147.93,6.13]
[1718365638321,12.7601,147.98,147.91,20.34]
[1718365638523,12.7601,147.98,147.93,6.13]
[1718365641021,12.7601,147.98,147.91,20.34]
[1718365641221,12.7601,147.98,147.92,6.13]
[1718365643337,0.33333334,147.97,147.93,6.13]
[1718365645226,0.33333334,147.97,147.91,20.34]
[1718365645629,0.33333334,147.97,147.92,6.13]
[1718365653046,0.33333334,147.97,147.91,20.34]
[1718365653368,0.33333334,147.97,147.92,6.13]
[1718365655763,0.33333334,147.97,147.91,20.34]
[1718365655945,6.46333334,147.97,147.92,6.13]
[1718365656341,22.3794,147.96,147.91,20.0]
[1718365656654,6.13,147.95,147.9,8.10845381]
[1718365658256,6.13,147.95,147.9,6.13]
[1718365658459,6.13,147.95,147.88,0.17]
[1718365658658,6.13,147.95,147.9,6.13]
[1718365659138,6.13,147.95,147.89,6.13]
[1718365659466,6.13,147.95,147.9,20.0]
[1718365660159,16.2494,147.96,147.9,20.0]
[1718365660749,0.33333334,147.95,147.9,20.0]
[1718365662566,0.33333334,147.95,147.89,6.13]
[1718365662861,0.33333334,147.95,147.9,20.0]
[1718365663366,6.46333334,147.95,147.9,26.13]
[1718365666141,6.13,147.94,147.88,6.3]
[1718365671248,6.13,147.93,147.88,6.3]
[1718365672369,16.2494,147.96,147.88,6.3]
[1718365674652,16.2494,147.96,147.89,6.13]
[1718365677774,16.2494,147.96,147.88,6.3]
[1718365679479,16.2494,147.96,147.89,6.13]
[1718365679874,16.2494,147.96,147.88,0.17]
[1718365680086,16.2494,147.96,147.89,6.13]
[1718365680687,16.2494,147.96,147.88,26.3]
[1718365681291,16.2494,147.96,147.91,6.13]
[1718365681466,22.3794,147.96,147.91,6.13]
[1718365681664,16.2494,147.96,147.92,6.13]
[1718365681867,16.2494,147.96,147.88,42.9518]
[1718365681868,16.2494,147.96,147.93,6.13]
[1718365682861,6.6301,147.98,147.91,8.6315]
[1718365683090,15.6192,148.0,147.95,6.13]
[1718365686158,21.7492,148.0,147.95,6.13]
[1718365688425,21.7492,148.0,147.92,20.51]
[1718365688426,21.7492,148.0,147.94,6.13]
[1718365689662,15.6192,148.0,147.94,6.13]
[1718365689863,21.7492,148.0,147.94,6.13]
[1718365690270,15.6192,148.0,147.94,6.13]
[1718365690505,15.6192,148.0,147.92,20.51]
[1718365690506,15.6192,148.0,147.96,6.13]
[1718365698288,15.6192,148.0,147.95,0.17]
[1718365698485,15.6192,148.0,147.96,6.13]
[1718365699499,15.6192,148.0,147.94,0.17]
[1718365699709,15.6192,148.0,147.95,6.13]
[1718365700001,6.13,147.99,147.93,6.13]
[1718365702319,6.13,147.98,147.93,6.13]
[1718365702809,6.13,147.97,147.92,26.13]
[1718365703022,15.6192,148.0,147.92,26.13]
[1718365703192,6.13,147.98,147.92,26.13]
[1718365706497,15.6192,148.0,147.93,6.13]
[1718365706698,6.13,147.98,147.93,6.13]
[1718365711012,15.6192,148.0,147.92,20.0]
[1718365711218,21.7492,148.0,147.94,6.13]
[1718365711589,6.4592,148.02,147.95,0.17]
[1718365711912,15.818,148.04,147.97,6.13]
[1718365712104,6.13,148.03,147.97,6.13]
[1718365714821,15.818,148.04,147.97,6.13]
[1718365714993,6.13,148.03,147.97,6.13]
[1718365715922,21.948,148.04,147.98,6.13]
[1718365716811,15.818,148.04,147.97,6.13]
[1718365717011,6.13,148.03,147.97,6.13]
[1718365718624,6.13,148.03,147.96,6.3]
[1718365718826,6.13,148.02,147.96,6.3]
[1718365719011,6.13,148.01,147.96,6.13]
[1718365719608,15.818,148.04,147.96,6.13]
[1718365719813,6.13,148.02,147.97,6.13]
[1718365720024,15.818,148.04,147.97,6.13]
[1718365720327,6.13,148.03,147.97,6.13]
[1718365720821,6.13,148.02,147.95,0.34]
[1718365721011,6.13,148.02,147.96,6.13]
[1718365722119,15.818,148.04,147.96,6.13]
[1718365722298,6.13,148.02,147.97,6.13]
[1718365722704,15.818,148.04,147.97,6.13]
[1718365722914,6.13,148.02,147.97,6.13]
[1718365723825,15.818,148.04,147.97,6.13]
[1718365724023,6.13,148.02,147.97,6.13]
[1718365726804,15.818,148.04,147.97,6.13]
[1718365727010,6.13,148.02,147.97,6.13]
[1718365727607,15.818,148.04,147.97,6.13]
[1718365728311,6.1157,148.06,147.96,0.17]
[1718365728508,6.1157,148.06,147.99,6.13]
[1718365728709,6.13,148.05,147.99,6.13]
[1718365729136,6.13,148.04,147.99,6.13]
[1718365730237,15.5352,148.08,147.99,15.218]
[1718365730535,6.13,148.07,148.0,20.17]
[1718365731233,6.13,148.06,148.0,20.17]
[1718365731422,6.13,148.07,148.01,6.13]
[1718365732322,6.0457,148.1,148.01,6.13]
[1718365732509,6.13,148.07,148.01,6.13]
[1718365732828,6.13,148.07,148.02,6.13]
[1718365733126,6.13,148.07,148.0,20.17]
[1718365733441,6.0457,148.1,148.0,20.17]
[1718365733442,6.13,148.06,148.01,6.13]
[1718365733613,6.13,148.06,148.0,26.3]
[1718365733814,6.13,148.06,148.0,20.0]
[1718365734015,6.13,148.06,148.0,26.13]
[1718365734223,6.13,148.05,147.99,21.348]
[1718365735119,6.13,148.04,147.99,15.218]
[1718365738542,0.17,148.09,147.99,15.218]
[1718365738746,6.13,148.04,147.99,15.218]
[1718365739350,6.13,148.05,147.99,21.348]
[1718365739540,6.13,148.06,148.0,6.13]
[1718365740341,6.13,148.06,147.99,15.218]
[1718365740752,6.13,148.05,147.99,21.348]
[1718365742321,6.13,148.04,147.99,15.218]
[1718365743025,0.68,148.09,147.99,15.218]
[1718365743227,6.13,148.05,147.99,21.348]
[1718365743725,0.17,148.04,147.97,6.2532]
[1718365743930,6.13,148.0,147.96,15.3738]